bitfinex/quotes_ETHUSD_20251110
["timestamp","ask_amount","ask_price","bid_price","bid_amount"]
[1762792141754,0.001,3531.1,3531.0,32.795562]
[1762792142136,0.005,3531.9,3531.4,2.83167533]
[1762792142336,0.005,3531.9,3531.8,9.55903668]
[1762792142855,0.005,3531.9,3531.8,10.02153668]
[1762792143444,0.005,3531.9,3531.8,17.52153668]
[1762792143641,0.1949,3533.0,3532.5,1.665216]
[1762792143858,0.1949,3533.0,3532.8,0.405504]
[1762792144232,0.7216,3532.9,3532.8,0.405504]
[1762792145365,0.7216,3532.9,3532.7,0.405504]
[1762792145545,0.4754,3532.8,3532.7,0.405504]
[1762792145876,0.7166,3532.8,3532.7,0.405504]
[1762792146280,3.54721594,3532.8,3532.7,0.405504]
[1762792146828,3.54721594,3532.8,3532.7,4.256304]
[1762792148229,3.54721594,3532.8,3532.7,3.8508]
[1762792148661,0.7166,3532.8,3532.7,3.8508]
[1762792148870,3.54721594,3532.8,3532.7,3.8508]
[1762792149740,0.7166,3532.8,3532.7,3.8508]
[1762792150284,3.54721594,3532.8,3532.7,3.8508]
[1762792152063,4.20497944,3532.8,3532.7,3.8508]
[1762792152269,4.20417944,3532.8,3532.7,3.8508]
[1762792156638,2.83069606,3532.7,3532.0,0.76031198]
[1762792156837,2.8314174,3531.8,3531.7,0.76031198]
[1762792157077,3.2948174,3531.8,3531.7,0.76031198]
[1762792157249,3.2948174,3531.8,3531.4,7.5]
[1762792157250,2.83149757,3531.7,3531.6,0.76031198]
[1762792157447,0.6599,3532.2,3531.7,0.405504]
[1762792157665,0.6599,3532.2,3532.0,0.405504]
[1762792157839,0.2422,3532.1,3532.0,1.16581598]
[1762792158045,0.1863,3532.5,3532.0,0.405504]
[1762792158270,0.1863,3532.5,3532.2,0.405504]
[1762792158469,0.6617,3532.5,3532.2,0.405504]
[1762792158647,0.2404,3532.3,3532.2,0.405504]
[1762792159476,0.1863,3532.5,3532.2,0.405504]
[1762792159642,3.3070287,3532.8,3532.2,0.405504]
[1762792159848,1.11013597,3532.8,3532.2,0.405504]
[1762792160172,3.29441661,3532.3,3532.2,0.405504]
[1762792160365,0.4634,3532.3,3532.2,0.405504]
[1762792160567,0.2522,3532.7,3532.2,0.405504]
[1762792160772,0.4754,3532.6,3532.2,1.16711638]
[1762792161277,0.001,3532.8,3532.5,0.76161238]
[1762792161467,0.001,3532.8,3532.6,0.76161238]
[1762792161978,0.2404,3532.7,3532.5,1.16711638]
[1762792162350,0.001,3532.8,3532.5,1.16711638]
[1762792162769,0.2404,3532.6,3532.5,1.16711638]
[1762792163366,0.7134,3532.6,3532.5,1.16711638]
[1762792163969,2.83085633,3532.5,3532.4,1.16711638]
[1762792164297,3.30625633,3532.5,3532.4,1.16711638]
[1762792164499,3.54665633,3532.5,3532.4,0.76161238]
[1762792164802,0.2404,3532.5,3532.3,0.76161238]
[1762792165097,2.83163427,3532.8,3532.2,1.01358104]
[1762792165098,3.30375668,3532.7,3532.2,1.01358104]
[1762792165305,2.83077619,3532.6,3532.5,0.76247737]
[1762792165595,0.4731,3532.6,3532.5,1.16798137]
[1762792165786,2.83075478,3532.7,3532.5,0.76247737]
[1762792166177,2.8316493,3532.8,3532.5,0.76247737]
[1762792166698,0.001,3532.8,3532.5,0.76247737]
[1762792166901,2.83070276,3532.7,3532.6,0.76247737]
[1762792167106,2.83069606,3532.7,3532.6,0.76247737]
[1762792167303,0.2427,3532.7,3532.5,0.405504]
[1762792167463,0.2427,3532.7,3532.6,3.8508]
[1762792168115,2.83162635,3532.8,3532.6,3.8508]
[1762792168314,2.83162711,3532.8,3532.6,3.8508]
[1762792168670,0.001,3532.8,3532.6,4.86438104]
[1762792169390,0.001,3532.8,3532.7,4.256304]
[1762792169706,0.001,3532.8,3532.7,5.26988504]
[1762792170008,0.001,3532.8,3532.7,4.256304]
[1762792170216,0.001,3532.8,3532.7,8.34786694]
[1762792170397,0.001,3532.8,3532.7,9.8682385]
[1762792171915,0.001,3532.8,3532.7,7.03754244]
[1762792172122,0.001,3532.8,3532.7,9.8682385]
[1762792172284,0.001,3532.8,3532.7,6.57694244]
[1762792172687,0.001,3532.8,3532.7,5.27429748]
[1762792172688,3.55211594,3532.8,3532.7,5.27429748]
[1762792173086,3.55211594,3532.8,3532.7,3.8508]
[1762792173580,3.55211594,3532.8,3532.3,0.405504]
[1762792173581,2.83069606,3532.7,3532.5,4.86879348]
[1762792173780,2.83077619,3532.6,3532.5,3.8508]
[1762792174021,3.55347619,3532.6,3532.5,3.8508]
[1762792174608,4.21128342,3532.6,3532.5,4.61448235]
[1762792174824,4.21128342,3532.6,3532.5,3.8508]
[1762792175833,2.83093647,3532.4,3532.3,0.76368235]
[1762792176003,2.83117692,3532.1,3532.0,1.01799348]
[1762792176331,3.55067692,3532.1,3532.0,1.01821632]
[1762792176910,2.83125707,3532.0,3531.9,1.01821632]
[1762792177101,3.30435707,3532.0,3531.7,1.01821632]
[1762792177295,3.47591296,3531.9,3531.8,1.01821632]
[1762792177756,2.8314174,3531.8,3531.7,0.002]
[1762792177922,3.3045174,3531.8,3531.7,0.002]
[1762792178249,4.26126756,3531.8,3531.7,0.002]
[1762792181906,2.83157775,3531.6,3531.5,0.002]
[1762792182111,3.56687775,3531.6,3531.5,0.002]
[1762792185852,4.82658975,3531.6,3531.5,0.002]
[1762792186029,5.60859096,3531.6,3531.5,0.002]
[1762792187551,4.34887896,3531.6,3531.5,0.002]
[1762792187727,3.09377775,3531.6,3531.5,0.002]
[1762792188152,2.83157775,3531.6,3531.5,0.002]
[1762792188344,3.09377775,3531.6,3531.5,0.002]
[1762792189541,3.56467775,3531.6,3531.5,0.002]
[1762792191049,2.83157775,3531.6,3531.5,0.002]
[1762792191255,3.09577775,3531.6,3531.5,0.002]
[1762792192434,4.17453726,3531.6,3531.5,0.002]
[1762792196340,3.70563726,3531.6,3531.5,0.002]
[1762792196533,3.44143726,3531.6,3531.5,0.002]
[1762792196761,2.83157775,3531.6,3531.5,0.002]
[1762792196937,3.11067775,3531.6,3531.5,0.002]
[1762792197277,0.001,3531.7,3531.5,0.4682]
[1762792197567,2.83157775,3531.6,3531.5,0.9636]
[1762792197775,2.83157775,3531.6,3531.5,0.002]
[1762792197977,2.83157775,3531.6,3531.5,0.4682]
[1762792198539,2.83157775,3531.6,3531.5,0.002]
[1762792199449,3.12037775,3531.6,3531.5,0.002]
[1762792200038,4.18611782,3531.6,3531.5,0.002]
[1762792200262,4.18531782,3531.6,3531.5,0.002]
[1762792200457,2.83077775,3531.6,3531.5,0.4682]
[1762792201215,0.001,3531.7,3531.6,0.405504]
[1762792201358,0.001,3531.7,3531.6,1.367104]
[1762792201695,0.001,3531.7,3531.6,0.871704]
[1762792201696,2.83249757,3531.7,3531.6,0.871704]
[1762792202676,2.83249757,3531.7,3531.6,0.405504]
[1762792202873,3.30409757,3531.7,3531.5,3.8528]
[1762792203107,3.29027775,3531.6,3531.5,3.8528]
[1762792203927,3.29027775,3531.6,3531.5,0.002]
[1762792204896,4.54998975,3531.6,3531.5,0.002]
[1762792205101,2.8318985,3531.2,3531.1,0.002]
[1762792205300,3.1179985,3531.2,3531.1,0.002]
[1762792205466,4.49774486,3531.2,3531.1,0.002]
[1762792206316,4.04174486,3531.2,3531.1,0.002]
[1762792206466,3.1179985,3531.2,3531.1,0.002]
[1762792206665,3.5739985,3531.2,3531.1,0.002]
[1762792207170,3.1179985,3531.2,3531.1,0.002]
[1762792207572,2.8318985,3531.2,3531.1,0.002]
[1762792207806,0.65705006,3531.7,3531.1,5.47458203]
[1762792207807,0.001,3531.7,3531.1,5.47458203]
[1762792208006,0.001,3531.7,3531.6,4.96299375]
[1762792208337,0.001,3531.7,3531.6,2.131416]
[1762792208512,0.001,3531.7,3531.6,5.45839375]
[1762792209000,0.001,3531.7,3531.6,2.626816]
[1762792209330,0.001,3531.7,3531.6,5.45839375]
[1762792209735,0.001,3531.7,3531.6,6.43980931]
[1762792210133,0.001,3531.7,3531.6,7.45563704]
[1762792210506,0.001,3531.7,3531.6,7.05013304]
[1762792210735,0.001,3531.7,3531.6,6.43980931]
[1762792211339,0.001,3531.7,3531.6,7.96389931]
[1762792211539,0.001,3531.7,3531.6,6.43980931]
[1762792212140,0.001,3531.7,3531.6,7.96240147]
[1762792212521,0.001,3531.7,3531.6,6.43980931]
[1762792214240,0.001,3532.1,3532.0,4.49647307]
[1762792214415,0.001,3532.1,3532.0,7.76373077]
[1762792214616,0.001,3532.1,3532.0,6.74950475]
[1762792214938,0.001,3532.1,3532.0,11.30236804]
[1762792216064,0.001,3532.1,3532.0,6.74950475]
[1762792216240,0.001,3532.1,3532.0,8.26924155]
[1762792216438,0.001,3532.1,3532.0,11.30236804]
[1762792216841,0.001,3532.1,3532.0,25.80236804]
[1762792218408,0.001,3532.1,3532.0,33.30236804]
[1762792219471,0.001,3532.1,3532.0,25.80236804]
[1762792219843,0.001,3532.1,3532.0,27.3205672]
[1762792220274,0.001,3532.5,3532.4,8.34595247]
[1762792220456,0.001,3532.5,3532.4,9.87558032]
[1762792220672,0.001,3532.5,3532.4,10.37098032]
[1762792220990,0.001,3532.5,3532.4,24.87098032]
[1762792221195,0.001,3532.5,3532.4,25.62974625]
[1762792221502,0.001,3532.5,3532.4,25.13434625]
[1762792221953,0.001,3532.5,3532.4,24.87098032]
[1762792222480,0.001,3532.5,3532.4,25.88285189]
[1762792222704,0.001,3532.5,3532.4,24.87098032]
[1762792223694,0.001,3532.5,3532.4,26.38917948]
[1762792223978,0.005,3532.9,3532.8,4.49583194]
[1762792224202,0.01,3533.9,3532.8,4.49583194]
[1762792224203,0.01,3533.9,3533.8,2.82981493]
[1762792224351,0.01,3533.9,3533.8,5.63103093]
[1762792224552,0.01,3533.9,3533.8,4.96123093]
[1762792224752,0.01,3533.9,3533.8,19.46123093]
[1762792225060,0.01,3533.9,3533.8,19.91813093]
[1762792225273,0.01,3533.9,3533.8,20.97182747]
[1762792225664,0.01,3533.9,3533.8,16.615316]
[1762792225986,0.01,3533.9,3533.8,19.44513093]
[1762792226530,0.01,3533.9,3533.8,19.91813093]
[1762792228121,0.01,3533.9,3533.8,1.665216]
[1762792228423,0.01,3533.9,3533.8,19.44513093]
[1762792228620,0.01,3533.9,3533.8,19.91813093]
[1762792228784,0.01,3533.9,3533.8,25.58400964]
[1762792228981,0.01,3534.9,3533.8,25.58400964]
[1762792228982,0.01,3534.9,3534.8,3.23451837]
[1762792229290,0.01,3534.9,3534.8,4.94433037]
[1762792230239,0.01,3534.9,3534.8,5.41733037]
[1762792231533,0.01,3534.9,3534.8,16.615316]
[1762792231909,0.01,3534.9,3534.8,19.91733037]
[1762792232096,0.01,3534.9,3534.8,22.64726008]
[1762792232316,0.01,3534.9,3534.8,19.44433037]
[1762792233298,0.011,3534.9,3534.8,19.91733037]
[1762792235831,0.001,3535.3,3535.2,4.49391027]
[1762792236151,0.001,3535.3,3535.2,9.68497356]
[1762792236312,0.2948,3535.3,3535.2,1.665216]
[1762792236512,0.001,3535.3,3535.2,4.49391027]
[1762792236817,0.001,3535.3,3535.2,18.99391027]
[1762792237015,0.001,3535.3,3535.2,16.165216]
[1762792237420,0.001,3535.3,3535.2,18.99391027]
[1762792237744,0.001,3535.3,3535.2,16.165216]
[1762792238117,0.2948,3535.3,3535.2,16.165216]
[1762792238657,3.57841426,3535.3,3535.2,1.665216]
[1762792238835,3.57841426,3535.3,3534.7,5.30836333]
[1762792239161,3.57841426,3535.3,3534.9,1.259712]
[1762792239316,2.8287503,3535.2,3535.0,0.405504]
[1762792239513,0.4566,3535.2,3535.0,0.405504]
[1762792239744,0.2938,3535.1,3535.0,0.405504]
[1762792240126,0.001,3535.3,3535.0,3.6844569]
[1762792240323,0.001,3535.3,3535.0,3.14508308]
[1762792240524,0.001,3535.3,3534.8,4.49416403]
[1762792240731,0.4576,3535.3,3535.0,0.405504]
[1762792240918,3.28622021,3535.3,3535.1,3.8498]
[1762792241114,3.28622021,3535.3,3535.2,0.405504]
[1762792241316,2.82883781,3535.1,3535.0,0.405504]
[1762792241949,0.4566,3535.2,3535.0,0.405504]
[1762792241950,0.001,3535.3,3535.0,0.9231]
[1762792242118,0.001,3535.3,3535.2,0.405504]
[1762792242782,0.7517,3535.3,3535.2,0.405504]
[1762792243080,3.58031426,3535.3,3535.2,0.405504]
[1762792243354,3.58032244,3535.3,3534.8,1.665216]
[1762792243518,0.0027,3535.2,3534.8,0.405504]
[1762792243715,3.2853009,3535.2,3535.0,0.405504]
[1762792243919,0.001,3535.3,3535.2,0.405504]
[1762792244120,0.001,3535.3,3535.2,0.855604]
[1762792244355,0.001,3535.3,3535.2,5.41701027]
[1762792244537,0.001,3535.3,3535.2,8.47932126]
[1762792245148,0.001,3535.3,3535.2,13.03218455]
[1762792245850,0.001,3535.3,3535.2,13.03439749]
[1762792246223,0.001,3535.3,3535.2,12.27668451]
[1762792246963,0.001,3535.3,3535.2,13.03452707]
[1762792247172,0.001,3535.3,3535.2,12.27668451]
[1762792247384,0.001,3535.3,3535.2,13.28736119]
[1762792247666,0.001,3535.3,3535.2,26.77668451]
[1762792248274,0.0002,3535.3,3535.2,28.29330054]
[1762792248434,0.01,3535.9,3535.8,3.23371826]
[1762792248625,0.01,3535.9,3535.8,10.57559579]
[1762792249452,0.01,3535.9,3535.8,18.07559579]
[1762792249656,0.01,3535.9,3535.8,32.57559579]
[1762792251260,0.01,3535.9,3535.8,34.09153768]
[1762792253652,0.011,3535.9,3535.8,25.07559579]
[1762792254636,0.011,3535.9,3535.8,24.60259579]
[1762792254840,0.011,3535.9,3535.8,25.10089579]
[1762792256542,0.011,3535.9,3535.8,24.60259579]
[1762792256760,0.011,3535.9,3535.8,25.05769579]
[1762792256995,0.011,3535.9,3535.8,20.0631325]
[1762792257195,0.011,3535.9,3535.8,25.07109579]
[1762792258098,0.01,3536.9,3536.8,0.405504]
[1762792258290,0.01,3536.9,3536.8,1.41899499]
[1762792258596,0.2438,3536.9,3536.8,1.41899499]
[1762792258798,0.9071,3536.9,3536.8,0.405504]
[1762792258996,3.73443467,3536.9,3536.8,0.405504]
[1762792259198,2.82741461,3536.8,3536.7,0.76017934]
[1762792259406,0.2308,3536.8,3536.7,0.405504]
[1762792259613,0.7007,3536.8,3536.7,0.405504]
[1762792260306,0.7007,3536.8,3536.7,1.16568334]
[1762792261091,0.7029,3536.8,3536.7,0.405504]
[1762792262504,1.07634848,3536.8,3536.6,0.76017934]
[1762792262664,2.8275745,3536.6,3536.4,0.405504]
[1762792262860,0.2292,3536.5,3536.4,0.405504]
[1762792263060,0.2292,3536.5,3536.3,1.16568334]
[1762792263290,0.4784,3536.4,3536.3,1.16568334]
[1762792263489,0.4784,3536.4,3536.3,0.405504]
[1762792263873,0.0069,3536.4,3536.3,0.405504]
[1762792264071,0.2042,3536.9,3536.5,0.405504]
[1762792264290,0.2042,3536.9,3536.7,0.405504]
[1762792264508,0.2042,3536.9,3536.8,0.76029035]
[1762792264889,0.9071,3536.9,3536.8,0.76029035]
[1762792265089,0.9071,3536.9,3536.7,1.16579435]
[1762792265435,0.4762,3536.8,3536.7,0.76029035]
[1762792265708,0.4762,3536.8,3536.6,0.76029035]
[1762792265886,0.4715,3536.8,3536.6,0.76029035]
[1762792266082,0.2338,3536.7,3536.6,1.16579435]
[1762792266286,0.2338,3536.7,3536.6,0.405504]
[1762792267207,0.7029,3536.7,3536.6,1.16575742]
[1762792267414,0.2338,3536.7,3536.6,1.16575742]
[1762792267776,0.2042,3536.9,3536.6,3.2330785]
[1762792268002,0.2042,3536.9,3536.8,1.16572685]
[1762792268202,0.4404,3536.9,3536.8,1.16572685]
[1762792268407,0.01,3536.9,3536.8,3.99314146]
[1762792268898,0.2438,3536.9,3536.8,0.405504]
[1762792269105,0.9071,3536.9,3536.8,0.405504]
[1762792270709,0.9071,3536.9,3536.5,0.76026625]
[1762792270710,1.28053019,3536.9,3536.5,0.76026625]
[1762792270914,0.2354,3536.8,3536.6,0.405504]
[1762792271317,0.4675,3536.7,3536.6,0.405504]
[1762792271620,0.4675,3536.7,3536.5,0.405504]
[1762792271941,2.82765446,3536.5,3536.3,0.76026625]
[1762792272225,2.83383441,3536.4,3536.3,0.76026625]
[1762792272513,0.4776,3536.4,3536.2,0.405504]
[1762792272680,0.4715,3536.3,3536.2,0.405504]
[1762792272880,0.7045,3536.3,3536.2,0.405504]
[1762792273316,1.05770974,3536.3,3536.1,1.01349099]
[1762792273516,0.0023,3536.2,3535.9,0.76384463]
[1762792273720,3.29906581,3536.7,3536.2,0.405504]
[1762792273916,3.03260718,3536.9,3536.2,0.405504]
[1762792273917,2.82743109,3536.8,3536.4,1.16728547]
[1762792274121,2.82743109,3536.8,3536.5,0.76178147]
[1762792274284,3.29906697,3536.7,3536.5,0.76178147]
[1762792274615,0.233,3536.6,3536.5,1.16728547]
[1762792274830,0.7021,3536.6,3536.5,0.405504]
[1762792275013,0.233,3536.6,3536.5,0.405504]
[1762792276830,0.6743,3536.9,3536.6,0.405504]
[1762792276996,0.6743,3536.9,3536.8,0.76262633]
[1762792277383,0.9097,3536.9,3536.8,0.76262633]
[1762792277617,3.73703467,3536.9,3536.8,0.76262633]
[1762792277815,2.82741461,3536.8,3536.7,0.76262633]
[1762792277994,3.29891461,3536.8,3536.7,0.76262633]
[1762792278198,3.53201461,3536.8,3536.7,0.76262633]
[1762792278392,3.53201461,3536.8,3536.7,1.16813033]
[1762792278393,0.2331,3536.8,3536.7,1.16813033]
[1762792278698,0.011,3536.9,3536.7,1.41899499]
[1762792278898,0.011,3536.9,3536.8,4.2464096]
[1762792279258,0.011,3536.9,3536.8,5.24492924]
[1762792279388,0.011,3536.9,3536.8,20.1717551]
[1762792279589,0.011,3536.9,3536.8,19.91123061]
[1762792280890,0.011,3536.9,3536.8,20.48257169]
[1762792281082,0.011,3536.9,3536.8,23.0739471]
[1762792283648,0.011,3536.9,3536.8,22.47771448]
[1762792283864,0.011,3536.9,3536.8,23.2781471]
[1762792284263,0.011,3536.9,3536.8,25.30512909]
[1762792286338,0.011,3536.9,3536.8,23.2781471]
[1762792286643,0.011,3536.9,3536.8,25.30512909]
[1762792286881,0.01,3537.9,3537.8,4.49183141]
[1762792287081,0.01,3537.9,3537.8,7.19963248]
[1762792287428,0.01,3537.9,3537.8,7.65443248]
[1762792287580,0.01,3537.9,3537.8,22.80933248]
[1762792288413,0.01,3537.9,3537.8,22.35453248]
[1762792289085,0.01,3537.9,3537.8,21.2868849]
[1762792292808,0.01,3538.9,3537.8,21.2868849]
[1762792292984,0.01,3538.9,3538.8,0.405504]
[1762792293392,0.2509,3538.9,3538.8,14.905504]
[1762792293596,0.01,3538.9,3538.8,18.18482066]
[1762792293780,0.01,3538.9,3538.8,19.39835241]
[1762792294181,0.01,3538.9,3538.8,18.94355241]
[1762792294398,0.01,3538.9,3538.8,17.73132066]
[1762792295546,0.01,3538.9,3538.8,18.22502066]
[1762792295939,0.01,3538.9,3538.8,17.73132066]
[1762792296209,0.0092,3538.9,3538.8,18.22502066]
[1762792296410,0.0092,3538.9,3538.8,22.18754446]
[1762792296710,0.01,3539.9,3538.8,22.18754446]
[1762792296711,0.01,3539.9,3539.0,0.405504]
[1762792296914,0.01,3539.9,3539.7,3.23056967]
[1762792297224,0.4592,3539.8,3539.6,0.405504]
[1762792297440,0.4592,3539.8,3539.4,0.75721205]
[1762792297441,0.4592,3539.8,3539.4,0.405504]
[1762792297594,0.2817,3539.5,3539.4,0.405504]
[1762792297795,0.2817,3539.5,3539.4,1.665216]
[1762792298056,0.2817,3539.5,3539.4,2.42242805]
[1762792298194,0.2817,3539.5,3539.4,1.665216]
[1762792298709,0.2817,3539.5,3539.4,0.405504]
[1762792298904,2.82541745,3539.3,3539.0,0.75721205]
[1762792299129,0.2789,3539.1,3538.9,1.718912]
[1762792299331,0.0073,3539.0,3538.9,0.405504]
[1762792299728,0.0073,3539.0,3538.9,1.665216]
[1762792300097,0.0073,3539.0,3538.9,0.405504]
[1762792300804,0.0073,3539.0,3538.8,17.78318917]
[1762792300805,0.4665,3539.0,3538.8,14.5]
[1762792301003,2.82591795,3538.7,3538.0,0.75721205]
[1762792301231,0.0096,3538.6,3538.0,0.75721205]
[1762792301537,0.0096,3538.6,3538.1,14.5]
[1762792301876,0.4655,3537.9,3537.8,0.78840041]
[1762792302077,0.9247,3537.9,3537.4,0.75721205]
[1762792302283,0.9247,3537.9,3537.5,0.17668281]
[1762792302578,0.4592,3538.4,3537.6,0.405504]
[1762792302892,0.4592,3538.8,3537.8,0.405504]
[1762792303045,3.28512513,3538.7,3538.0,2.82644189]
[1762792303237,0.4592,3538.8,3538.2,0.405504]
[1762792303474,2.82597486,3538.7,3538.2,0.405504]
[1762792303688,0.2809,3538.3,3538.1,0.405504]
[1762792304041,0.0046,3538.2,3538.1,0.405504]
[1762792304236,0.0046,3538.2,3538.1,3.23187973]
[1762792304542,0.4574,3538.6,3538.1,3.23187973]
[1762792305154,0.4574,3538.6,3538.1,0.405504]
[1762792305351,3.28337894,3538.6,3538.1,0.405504]
[1762792305592,0.4574,3538.6,3538.1,0.405504]
[1762792305787,0.2827,3538.2,3538.1,0.405504]
[1762792306391,0.4557,3538.5,3538.1,0.405504]
[1762792306589,0.2844,3538.2,3538.1,0.405504]
[1762792306767,0.4592,3538.8,3538.3,0.405504]
[1762792306962,3.28502712,3538.8,3538.3,0.405504]
[1762792307782,0.4592,3538.7,3538.3,0.405504]
[1762792307993,0.4592,3539.4,3538.5,0.405504]
[1762792308209,0.1653,3539.9,3538.8,0.899204]
[1762792308210,2.82510571,3539.7,3538.8,0.899204]
[1762792308386,0.4592,3539.8,3539.2,3.23096315]
[1762792308610,0.1653,3539.9,3539.2,0.405504]
[1762792308914,0.2809,3539.3,3539.1,0.405504]
[1762792309073,0.0046,3539.2,3539.1,0.405504]
[1762792309274,0.7383,3539.2,3538.9,0.405504]
[1762792309476,0.2809,3539.2,3538.9,0.405504]
[1762792309695,0.0046,3539.0,3538.8,0.405504]
[1762792310007,2.82541825,3539.3,3538.8,0.405504]
[1762792310008,0.2764,3538.9,3538.8,0.405504]
[1762792310208,2.82546616,3539.3,3538.8,0.405504]
[1762792310509,3.28464624,3539.3,3538.8,1.16271605]
[1762792310710,2.82555643,3539.2,3538.8,1.16471605]
[1762792311011,0.2809,3538.9,3538.8,1.16471605]
[1762792311209,0.2809,3538.9,3538.8,0.407504]
[1762792311407,3.10663681,3538.9,3538.8,1.16471605]
[1762792311611,3.10663681,3538.9,3538.8,0.407504]
[1762792311808,0.2809,3538.9,3538.8,0.407504]
[1762792312103,0.1933,3540.1,3538.8,0.407504]
[1762792312307,2.82547074,3539.3,3539.0,0.405504]
[1762792312472,3.28456636,3539.4,3539.0,0.405504]
[1762792312677,0.4747,3539.1,3539.0,0.405504]
[1762792312877,0.2656,3539.3,3539.0,0.405504]
[1762792312878,0.1653,3539.9,3539.2,2.82548993]
[1762792313133,0.6245,3539.9,3539.6,0.75721205]
[1762792313349,0.6245,3539.9,3539.7,0.405504]
[1762792313515,0.01,3539.9,3539.8,1.16271605]
[1762792314195,0.01,3539.9,3539.8,0.405504]
[1762792315305,0.01,3539.9,3539.8,1.16271605]
[1762792315999,0.247,3539.9,3539.8,1.16271605]
[1762792316200,0.247,3539.9,3539.8,0.405504]
[1762792316396,0.8978,3539.9,3539.7,0.75721205]
[1762792316700,2.8252578,3539.5,3539.4,0.75721205]
[1762792316921,2.82533762,3539.4,3539.2,0.75721205]
[1762792317241,0.4862,3539.4,3539.3,0.405504]
[1762792317540,2.8252578,3539.5,3539.3,0.405504]
[1762792317738,3.30453762,3539.4,3539.3,0.405504]
[1762792318098,0.4792,3539.4,3539.3,0.405504]
[1762792318338,0.4792,3539.4,3539.3,1.16271605]
[1762792318852,3.51623762,3539.4,3539.3,0.405504]
[1762792319051,0.4792,3539.4,3539.3,0.405504]
[1762792319205,3.51623762,3539.4,3539.3,0.405504]
[1762792320132,4.15037936,3539.4,3539.3,0.405504]
[1762792320341,4.15037936,3539.4,3539.2,0.75721205]
[1762792320342,2.82541745,3539.3,3539.2,0.405504]
[1762792320686,3.31371745,3539.3,3539.2,0.405504]
[1762792320970,3.31371745,3539.3,3539.1,0.405504]
[1762792321134,3.31161745,3539.3,3539.1,0.405504]
[1762792321337,3.51569728,3539.2,3539.1,0.405504]
[1762792321988,2.82557712,3539.1,3539.0,0.75721205]
[1762792322139,0.6902,3539.1,3538.9,0.75721205]
[1762792322333,0.2093,3539.9,3539.0,0.405504]
[1762792322334,0.4862,3539.7,3539.0,0.405504]
[1762792322534,0.2093,3539.9,3539.2,0.405504]
[1762792322768,3.52046624,3539.9,3539.2,1.16271605]
[1762792323038,3.52049155,3539.9,3539.5,0.405504]
[1762792323238,2.82502847,3539.8,3539.5,0.405504]
[1762792323499,0.204,3539.6,3539.5,1.16271605]
[1762792323698,0.2093,3539.9,3539.5,1.16271605]
[1762792323837,0.6955,3539.9,3539.5,1.16271605]
[1762792324036,0.6955,3539.9,3539.5,3.9879668]
[1762792324273,0.2093,3539.9,3539.5,1.16271605]
[1762792324596,0.4792,3539.6,3539.5,1.16271605]
[1762792324894,0.4792,3539.6,3539.5,0.405504]
[1762792325168,3.51537798,3539.6,3539.4,1.16271605]
[1762792325349,0.204,3539.5,3539.4,1.16271605]
[1762792325747,0.204,3539.5,3539.4,5.01251605]
[1762792325952,3.03427734,3539.9,3539.4,5.50621605]
[1762792326184,0.2093,3539.9,3539.4,5.50621605]
[1762792326343,0.6955,3539.9,3539.5,0.75721205]
[1762792326537,0.6955,3539.9,3539.6,0.405504]
[1762792326538,0.01,3539.9,3539.6,0.405504]
[1762792326856,0.01,3539.9,3539.8,0.405504]
[1762792327045,0.1522,3539.9,3539.8,0.405504]
[1762792327250,0.8989,3539.9,3539.8,0.405504]
[1762792327650,0.4127,3539.9,3539.8,0.405504]
[1762792327856,0.01,3539.9,3539.8,0.405504]
[1762792328278,0.01,3539.9,3539.8,1.16271605]
[1762792328577,0.01,3539.9,3539.8,1.65641605]
[1762792328870,0.01,3539.9,3539.8,2.11861605]
[1762792329047,0.01,3539.9,3539.8,1.65641605]
[1762792329247,0.01,3539.9,3539.8,1.16271605]
[1762792329448,0.01,3539.9,3539.8,1.65641605]
[1762792329851,0.01,3539.9,3539.8,4.48143441]
[1762792330051,0.01,3539.9,3539.8,4.18642236]
[1762792330252,0.01,3539.9,3539.8,5.11451268]
[1762792330486,0.01,3539.9,3539.8,6.12412875]
[1762792331058,0.01,3539.9,3539.8,9.97392875]
[1762792331255,0.214,3539.9,3539.8,6.19301039]
[1762792331462,0.214,3539.9,3539.8,4.255304]
[1762792331659,0.214,3539.9,3539.8,7.08032236]
[1762792331977,0.01,3539.9,3539.8,9.04583843]
[1762792332377,0.01,3539.9,3539.8,8.03622236]
[1762792332578,0.01,3539.9,3539.8,5.6995505]
[1762792333147,0.01,3539.9,3539.8,3.72422236]
[1762792333344,0.01,3539.9,3539.8,5.19954794]
[1762792333770,0.01,3539.9,3539.8,4.18642236]
[1762792334548,0.01,3539.9,3539.8,4.74422817]
[1762792334974,0.01,3539.9,3539.8,6.00394017]
[1762792335176,0.01,3539.9,3539.8,8.55271138]
[1762792336088,0.01,3540.9,3540.0,0.405504]
[1762792336387,0.1467,3540.9,3540.8,0.405504]
[1762792336685,0.8911,3540.9,3540.8,0.405504]
[1762792336884,2.82422051,3540.8,3540.7,0.405504]
[1762792337047,3.96918924,3540.8,3540.5,0.405504]
[1762792337253,3.96918924,3540.8,3540.2,0.75997666]
[1762792337254,0.4792,3540.5,3540.2,0.75997666]
[1762792337467,3.30163789,3540.3,3540.1,0.75997666]
[1762792337666,2.82463789,3540.3,3540.1,0.75997666]
[1762792337862,3.56909916,3540.2,3540.0,0.75997666]
[1762792338064,0.484,3540.2,3540.0,0.75997666]
[1762792338265,0.7444,3540.1,3540.0,0.75997666]
[1762792338484,0.7444,3540.1,3540.0,1.16548066]
[1762792338880,3.56917896,3540.1,3540.0,1.16548066]
[1762792339091,2.82485875,3540.0,3539.9,0.75997666]
[1762792339455,3.31105875,3540.0,3539.9,0.75997666]
[1762792339605,2.82493855,3539.9,3539.6,1.01330221]
[1762792339768,2.82493855,3539.9,3539.4,16.42545732]